fUST/lending_fUST_20250128
["ID","MTS","AMOUNT","RATE_DAILY","PERIOD"]
[350649023,1738024240066,-500.0,0.00016438,2]
[350649024,1738024240076,-500.0,0.00016438,2]
[350649025,1738024240085,-500.0,0.00016438,2]
[350649026,1738024240094,-500.0,0.00016438,2]
[350649027,1738024240103,-647.48379493,0.00016438,2]
[350649028,1738024240112,-500.0,0.00016438,2]
[350649029,1738024240121,-512.08064928,0.00016438,2]
[350649030,1738024240263,-500.0,0.00016438,2]
[350649031,1738024240274,-301.69102762,0.00016438,2]
[350649032,1738024240284,-500.0,0.00016438,2]
[350649033,1738024240293,-500.0,0.00016438,2]
[350649034,1738024240303,-501.03747084,0.00016438,2]
[350649035,1738024240313,-500.0,0.00016438,2]
[350649036,1738024240322,-502.92755861,0.00016438,2]
[350649037,1738024240331,-500.0,0.00016438,2]
[350649038,1738024240340,-222.60415752,0.00016438,2]
[350649039,1738024240350,-500.0,0.00016438,2]
[350649040,1738024240359,-500.0,0.00016438,2]
[350649041,1738024240368,-500.0,0.00016438,2]
[350649042,1738024240377,-501.57585974,0.00016438,2]
[350649043,1738024240386,-477.78907011,0.00016438,2]
[350649044,1738024240395,-500.0,0.00016438,2]
[350649045,1738024240407,-500.0,0.00016438,2]
[350649046,1738024240417,-500.0,0.00016438,2]
[350649047,1738024240426,-500.0,0.00016438,2]
[350649048,1738024240435,-632.14,0.00016438,2]
[350649049,1738024240444,-503.69295102,0.00016438,2]
[350649050,1738024240454,-500.0,0.00016438,2]
[350649051,1738024240463,-516.04767782,0.00016438,2]
[350649052,1738024240472,-293.89958269,0.00016438,2]
[350649053,1738024240483,-500.0,0.00016438,2]
[350649054,1738024240491,-500.0,0.00016438,2]
[350649055,1738024240500,-500.0,0.00016438,2]
[350649056,1738024240509,-500.0,0.00016438,2]
[350649057,1738024240518,-500.0,0.00016438,2]
[350649058,1738024240527,-637.75631503,0.00016438,2]
[350649059,1738024240536,-500.0,0.00016438,2]
[350649060,1738024240545,-500.0,0.00016438,2]
[350649061,1738024240554,-500.0,0.00016438,2]
[350649062,1738024240563,-500.0,0.00016438,2]
[350649063,1738024240574,-500.0,0.00016438,2]
[350649064,1738024240583,-500.0,0.00016438,2]
[350649065,1738024240592,-500.0,0.00016438,2]
[350649066,1738024240601,-500.0,0.00016438,2]
[350649067,1738024240610,-500.0,0.00016438,2]
[350649068,1738024240619,-613.36,0.00016438,2]
[350649069,1738024240629,-500.0,0.00016438,2]
[350649070,1738024240638,-500.0,0.00016438,2]
[350649071,1738024240647,-500.0,0.00016438,2]
[350649072,1738024240656,-500.0,0.00016438,2]
[350649073,1738024240665,-500.0,0.00016438,2]
[350649074,1738024240674,-500.0,0.00016438,2]
[350649075,1738024240683,-500.0,0.00016438,2]
[350649076,1738024240693,-500.0,0.00016438,2]
[350649077,1738024240702,-500.0,0.00016438,2]
[350649078,1738024240711,-500.0,0.00016438,2]
[350649079,1738024240721,-500.0,0.00016438,2]
[350649080,1738024240731,-500.0,0.00016438,2]
[350649081,1738024240740,-500.0,0.00016438,2]
[350649082,1738024240749,-500.0,0.00016438,2]
[350649083,1738024240759,-500.0,0.00016438,2]
[350649084,1738024240768,-500.0,0.00016438,2]
[350649085,1738024240777,-500.0,0.00016438,2]
[350649086,1738024240787,-500.0,0.00016438,2]
[350649087,1738024240797,-500.0,0.00016438,2]
[350649088,1738024240806,-541.26,0.00016438,2]
[350649089,1738024240815,-500.0,0.00016438,2]
[350649090,1738024240825,-543.18659799,0.00016438,2]
[350649091,1738024240833,-500.0,0.00016438,2]
[350649092,1738024240842,-500.0,0.00016438,2]
[350649093,1738024240851,-500.0,0.00016438,2]
[350649094,1738024240860,-500.0,0.00016438,2]
[350649095,1738024240870,-500.0,0.00016438,2]
[350649096,1738024240879,-500.0,0.00016438,2]
[350649097,1738024240888,-500.0,0.00016438,2]
[350649098,1738024240898,-500.0,0.00016438,2]
[350649099,1738024240907,-500.0,0.00016438,2]
[350649100,1738024240916,-500.0,0.00016438,2]
[350649101,1738024240926,-601.67893969,0.00016438,2]
[350649102,1738024240935,-500.0,0.00016438,2]
[350649103,1738024240944,-500.0,0.00016438,2]
[350649104,1738024240953,-499.82010869,0.00016438,2]
[350649105,1738024240963,-158.86,0.00016438,2]
[350649106,1738024240972,-500.0,0.00016438,2]
[350649107,1738024240982,-500.0,0.00016438,2]
[350649108,1738024240991,-500.0,0.00016438,2]
[350649109,1738024241000,-500.0,0.00016438,2]
[350649110,1738024241009,-500.0,0.00016438,2]
[350649111,1738024241018,-500.0,0.00016438,2]
[350649112,1738024241027,-500.0,0.00016438,2]
[350649113,1738024241036,-500.0,0.00016438,2]
[350649114,1738024241045,-500.0,0.00016438,2]
[350649115,1738024241054,-500.0,0.00016438,2]
[350649116,1738024241063,-500.0,0.00016438,2]
[350649117,1738024241072,-500.0,0.00016438,2]
[350649118,1738024241081,-500.0,0.00016438,2]
[350649119,1738024241090,-500.0,0.00016438,2]
[350649120,1738024241099,-500.0,0.00016438,2]
[350649121,1738024241108,-503.88523968,0.00016438,2]
[350649122,1738024241117,-500.0,0.00016438,2]
[350649123,1738024241127,-500.0,0.00016438,2]
[350649124,1738024241136,-500.0,0.00016438,2]
[350649125,1738024241145,-500.0,0.00016438,2]
[350649126,1738024241154,-500.0,0.00016438,2]
[350649127,1738024241164,-500.0,0.00016438,2]
[350649128,1738024241174,-500.0,0.00016438,2]
[350649129,1738024241183,-500.0,0.00016438,2]
[350649130,1738024241192,-500.0,0.00016438,2]
[350649131,1738024241201,-500.0,0.00016438,2]
[350649132,1738024241212,-500.0,0.00016438,2]
[350649133,1738024241221,-500.0,0.00016438,2]
[350649134,1738024241230,-500.0,0.00016438,2]
[350649135,1738024241240,-500.0,0.00016438,2]
[350649136,1738024241249,-500.0,0.00016438,2]
[350649137,1738024241258,-500.0,0.00016438,2]
[350649138,1738024241268,-500.0,0.00016438,2]
[350649139,1738024241277,-500.0,0.00016438,2]
[350649140,1738024241289,-500.0,0.00016438,2]
[350649141,1738024241298,-500.0,0.00016438,2]
[350649142,1738024241307,-500.0,0.00016438,2]
[350649143,1738024241316,-500.0,0.00016438,2]
[350649144,1738024241325,-500.0,0.00016438,2]
[350649145,1738024241335,-500.0,0.00016438,2]
[350649146,1738024241344,-500.0,0.00016438,2]
[350649147,1738024241353,-502.46572021,0.00016438,2]
[350649148,1738024241363,-501.67030172,0.00016438,2]
[350649149,1738024241373,-500.0,0.00016438,2]
[350649150,1738024241382,-500.0,0.00016438,2]
[350649151,1738024241392,-152.0,0.00016529,2]
[350649152,1738024241402,-629.82739296,0.00016574,2]
[350649153,1738024241413,-549.97720227,0.00016574,2]
[350649154,1738024241423,-500.0,0.00016575,2]
[350649155,1738024241432,-500.0,0.00016575,2]
[350649156,1738024241442,-500.0,0.00016575,2]
[350649157,1738024241451,-500.0,0.00016575,2]
[350649158,1738024241463,-500.0,0.00016575,2]
[350649159,1738024241473,-500.0,0.00016575,2]
[350649160,1738024241482,-500.0,0.00016575,2]
[350649161,1738024241493,-500.0,0.00016575,2]
[350649162,1738024241503,-500.0,0.00016575,2]
[350649163,1738024241513,-525.27279852,0.00016575,2]
[350649164,1738024241522,-500.0,0.00016575,2]
[350649165,1738024241531,-500.0,0.00016575,2]
[350649166,1738024241541,-500.0,0.00016575,2]
[350649167,1738024241551,-500.0,0.00016575,2]
[350649168,1738024241560,-500.0,0.00016575,2]
[350649169,1738024241569,-500.0,0.00016575,2]
[350649170,1738024241579,-500.0,0.00016575,2]
[350649171,1738024241588,-500.0,0.00016575,2]
[350649172,1738024241598,-154.16683933,0.00016575,2]
[350649173,1738024241607,-500.0,0.00016575,2]
[350649174,1738024241616,-500.0,0.00016575,2]
[350649175,1738024241625,-500.0,0.00016575,2]
[350649176,1738024241634,-503.65076693,0.00016575,2]
[350649177,1738024241644,-500.0,0.00016575,2]
[350649178,1738024241653,-500.0,0.00016575,2]
[350649179,1738024241662,-539.09,0.00016575,2]
[350649180,1738024241673,-500.0,0.00016575,2]
[350649181,1738024241683,-500.0,0.00016575,2]
[350649182,1738024241692,-500.0,0.00016575,2]
[350649183,1738024241701,-500.0,0.00016575,2]
[350649184,1738024241710,-500.0,0.00016575,2]
[350649185,1738024241720,-500.0,0.00016575,2]
[350649186,1738024241730,-500.0,0.00016575,2]
[350649187,1738024241739,-500.0,0.00016575,2]
[350649188,1738024241748,-500.0,0.00016575,2]
[350649189,1738024241758,-500.0,0.00016575,2]
[350649190,1738024241767,-500.0,0.00016575,2]
[350649191,1738024241776,-500.0,0.00016575,2]
[350649192,1738024241786,-500.0,0.00016575,2]
[350649193,1738024241795,-500.0,0.00016575,2]
[350649194,1738024241805,-505.80385767,0.00016575,2]
[350649195,1738024241814,-500.0,0.00016575,2]
[350649196,1738024241823,-540.05,0.00016575,2]
[350649197,1738024241833,-500.0,0.00016575,2]
[350649198,1738024241842,-500.0,0.00016575,2]
[350649199,1738024241851,-500.0,0.00016575,2]
[350649200,1738024241860,-570.36,0.00016575,2]
[350649201,1738024241869,-640.41,0.00016575,2]
[350649202,1738024241879,-500.0,0.00016575,2]
[350649203,1738024241888,-500.0,0.00016575,2]
[350649204,1738024241898,-276.95,0.00016575,2]
[350649205,1738024241907,-447.53,0.00016575,2]
[350649206,1738024241917,-500.0,0.00016575,2]
[350649207,1738024241926,-500.0,0.00016575,2]
[350649208,1738024241935,-268.36,0.00016575,2]
[350649209,1738024241944,-500.0,0.00016575,2]
[350649210,1738024241955,-500.0,0.00016575,2]
[350649211,1738024241965,-646.02,0.00016575,2]
[350649212,1738024241974,-500.0,0.00016575,2]
[350649213,1738024241983,-500.0,0.00016575,2]
[350649214,1738024241993,-500.0,0.00016575,2]
[350649215,1738024242002,-500.0,0.00016575,2]
[350649216,1738024242011,-500.0,0.00016575,2]
[350649217,1738024242021,-500.0,0.00016575,2]
[350649218,1738024242031,-382.91,0.00016575,2]
[350649219,1738024242039,-500.0,0.00016712,2]
[350649220,1738024242048,-177.78011075,0.00016712,2]
[350649221,1738024242058,-409.41,0.00016712,2]
[350649222,1738024242068,-500.0,0.00016712,2]
[350649223,1738024242078,-239.29,0.00016712,2]
[350649224,1738024242087,-500.0,0.00016712,2]
[350649225,1738024242097,-500.0,0.00016712,2]
[350649226,1738024242106,-500.0,0.00016712,2]
[350649227,1738024242116,-500.0,0.00016712,2]
[350649228,1738024242125,-500.0,0.00016712,2]
[350649229,1738024242135,-500.0,0.00016849,2]
[350649230,1738024242144,-500.0,0.00016849,2]
[350649231,1738024242153,-500.0,0.00016849,2]
[350649232,1738024242163,-512.69,0.00016849,2]
[350649233,1738024242173,-500.0,0.00016849,2]
[350649234,1738024242183,-500.0,0.00016986,2]
[350649235,1738024242192,-500.0,0.00016986,2]
[350649236,1738024242201,-500.0,0.00016986,2]
[350649237,1738024242211,-500.0,0.00016986,2]
[350649238,1738024242221,-500.0,0.00017123,2]
[350649239,1738024242231,-500.0,0.00017123,2]
[350649240,1738024242240,-500.0,0.00017123,2]
[350649241,1738024242249,-372.54,0.00017123,2]
[350649242,1738024242259,-500.0,0.0001726,2]
[350649243,1738024242268,-292.02,0.0001726,2]
[350649244,1738024242277,-500.0,0.0001726,2]
[350649245,1738024242287,-295.34169424,0.00017397,2]
[350649246,1738024242297,-500.0,0.00017397,2]
[350649247,1738024242307,-500.0,0.00017534,2]
[350649248,1738024242316,-500.0,0.00017671,2]
[350649249,1738024242325,-500.0,0.00017808,2]
[350649250,1738024242335,-500.0,0.00017945,2]
[350649251,1738024242344,-500.0,0.00018082,2]
[350649252,1738024242353,-500.0,0.00018219,2]
[350649253,1738024242362,-151.0,0.000183,2]
[350649254,1738024242372,-500.0,0.00018356,2]
[350649255,1738024242381,-500.0,0.00018493,2]
[350649256,1738024242390,-153.0,0.00018586,2]
[350649257,1738024242399,-153.0,0.00018591,2]
[350649258,1738024242409,-153.0,0.00018594,2]
[350649259,1738024242421,-155.76,0.000186,2]
[350649260,1738024242430,-500.0,0.0001863,2]
[350649261,1738024242439,-500.0,0.00018767,2]
[350649262,1738024242450,-500.0,0.00018904,2]
[350649264,1738024242458,-151.0,0.00019,2]
[350649265,1738024242468,-500.0,0.00019041,2]
[350649266,1738024242477,-500.0,0.00019178,2]
[350649268,1738024242488,-198.15,0.00019315,2]
[350649269,1738024242497,-151.0,0.000196,2]
[350649270,1738024242506,-362.95472698,0.0002,2]
[350649271,1738024242515,-151.0,0.000202,3]
[350649272,1738024242524,-241.887444,0.00020369,2]
[350649273,1738024242533,-199.147395,0.00020447,2]
[350649274,1738024242542,-499.0,0.00020547,2]
[350649275,1738024242551,-354.177473,0.00020822,2]
[350649276,1738024242561,-354.177473,0.00020822,2]
[350649277,1738024242570,-354.177473,0.00020822,2]
[350649278,1738024242579,-354.177473,0.00020822,2]
[350649279,1738024242588,-354.177473,0.00020822,2]
[350649280,1738024242598,-354.177473,0.00020822,2]
[350649281,1738024242607,-354.177473,0.00020822,2]
[350649282,1738024242616,-354.177473,0.00020822,2]
[350649283,1738024242625,-151.0,0.000209,4]
[350649284,1738024242634,-151.0,0.000209,4]
[350649285,1738024242644,-150.0,0.00021,2]
[350649286,1738024242652,-215.2923755,0.00021096,2]
[350649287,1738024242662,-317.5126754,0.00021096,2]
[350649288,1738024242671,-153.9757311,0.00021096,2]
[350649289,1738024242681,-484.52113588,0.00021352,2]
[350649290,1738024242690,-151.0,0.000215,3]
[350649291,1738024242699,-151.0,0.000215,4]
[350649292,1738024242708,-266.73,0.000216,2]
[350649293,1738024242718,-4322.0,0.000216,4]
[350649294,1738024242727,-156.731,0.0002161,2]
[350649295,1738024242736,-306.0,0.00021644,2]
[350649296,1738024242746,-2305.0,0.00021762,2]
[350649298,1738024242755,-259.692,0.00021762,2]
[350649299,1738024242764,-178.95378447,0.00021781,2]
[350649301,1738024242784,-174.13406653,0.00021781,2]
[350649302,1738024242793,-499.0,0.00021917,4]
[350649303,1738024242803,-1444.06593347,0.0002199,7]
[350649309,1738024242876,-616.4984542,0.0002199,7]
[350649311,1738024242885,-300.0,0.00022,9]
[350649312,1738024242894,-151.0,0.000221,10]
[350649313,1738024242903,-151.0,0.000221,9]
[350649314,1738024242913,-155.433122,0.00022184,14]
[350649315,1738024242922,-238.0115379,0.00022518,2]
[350649316,1738024242931,-5618.40921052,0.0002267,2]
[350649317,1738024242940,-505.67969503,0.0002274,7]
[350649318,1738024242949,-500.0,0.00022744,8]
[350649319,1738024242958,-500.0,0.00022744,8]
[350649320,1738024243055,-239.6621048,0.00022745,2]
[350649321,1738024243065,-151.0,0.00022748,7]
[350649322,1738024243075,-151.0,0.00022748,7]
[350649323,1738024243085,-151.0,0.00022748,7]
[350649324,1738024243095,-151.0,0.00022748,7]
[350649325,1738024243104,-151.0,0.00022748,7]
[350649326,1738024243113,-151.0,0.00022748,7]
[350649327,1738024243122,-151.0,0.00022748,7]
[350649329,1738024243132,-151.0,0.00022748,7]
[350649330,1738024243141,-151.0,0.00022748,7]
[350649331,1738024243151,-151.0,0.00022748,7]
[350649332,1738024243161,-151.0,0.00022748,7]
[350649333,1738024243171,-151.0,0.00022748,7]
[350649334,1738024243181,-151.0,0.00022748,7]
[350649335,1738024243191,-285.458912,0.00022748,7]
[350649336,1738024243201,-151.0,0.00022748,7]
[350649337,1738024243210,-151.0,0.00022748,7]
[350649338,1738024243220,-151.0,0.00022748,7]
[350649339,1738024243230,-151.0,0.00022748,7]
[350649340,1738024243239,-151.0,0.00022748,7]
[350649341,1738024243249,-151.0,0.00022748,7]
[350649342,1738024243260,-151.0,0.00022748,7]
[350649343,1738024243270,-151.0,0.00022748,7]
[350649344,1738024243280,-151.0,0.00022748,7]
[350649345,1738024243290,-151.0,0.00022748,7]
[350649346,1738024243301,-237.1443,0.00022748,7]
[350649347,1738024243311,-151.0,0.00022748,7]
[350649348,1738024243321,-3950.03883493,0.00022748,5]
[350649349,1738024243332,-1044.27376029,0.00022748,5]
[350649350,1738024243341,-12630.39006834,0.00022749,61]
[350649351,1738024243353,-17666.5,0.00022749,61]
[350649352,1738024243434,-500.0,0.00016438,2]
[350649353,1738024243444,-500.0,0.00016575,2]
[350649354,1738024243454,-500.0,0.00016712,2]
[350649355,1738024243464,-500.0,0.00016849,2]
[350649356,1738024243473,-500.0,0.00016986,2]
[350649357,1738024243482,-500.0,0.00017123,2]
[350649358,1738024243493,-267.8,0.0001726,2]
[350649359,1738024243503,-350435.96685614,0.00022749,61]
[350649373,1738024246160,-354.177473,0.00020822,2]
[350649375,1738024246170,-1370.672527,0.00022749,61]
[350649436,1738024813962,179.232655,0.00013973,2]
[350649457,1738025188020,186.12,0.00010959,2]
[350649458,1738025198468,155.1,0.00010959,2]
[350649459,1738025209165,775.54,0.00010959,2]
[350649460,1738025231171,-197.06914232,0.00015384,2]
[350649461,1738025231193,-241.8874447,0.00015484,2]
[350649462,1738025231215,-153.0,0.00015721,2]
[350649463,1738025231237,-153.0,0.00015721,2]
[350649464,1738025231258,-153.0,0.00015728,2]
[350649465,1738025231280,-153.0,0.00015728,2]
[350649466,1738025231302,-153.0,0.00015735,2]
[350649467,1738025231322,-153.0,0.00015735,2]
[350649468,1738025231343,-1330.08578328,0.00016337,2]
[350649469,1738025231363,-191.03957776,0.00016338,2]
[350649470,1738025231389,-606.85948498,0.00016437,2]
[350649471,1738025231410,-300.0,0.00016437,2]
[350649472,1738025231430,-500.0,0.00016438,2]
[350649473,1738025231451,-500.0,0.00016438,2]
[350649474,1738025231472,-500.0,0.00016438,2]
[350649475,1738025231494,-500.0,0.00016438,2]
[350649476,1738025231515,-500.0,0.00016438,2]
[350649477,1738025231536,-500.0,0.00016438,2]
[350649478,1738025231557,-500.0,0.00016438,2]
[350649479,1738025231579,-363.74015715,0.00016438,2]
[350649480,1738025242119,-150.44642735,0.00016438,2]
[350649481,1738025242146,-500.0,0.00016438,2]
[350649482,1738025242168,-500.0,0.00016438,2]
[350649483,1738025242189,-500.0,0.00016438,2]
[350649484,1738025242211,-525.78124242,0.00016438,2]
[350649485,1738025242232,-524.25304987,0.00016438,2]
[350649486,1738025242254,-62.14832367,0.00016438,2]
[350649541,1738025432456,-191.03957776,0.00016338,2]
[350649543,1738025432466,-300.0,0.00016437,2]
[350649545,1738025432476,-431.3297498,0.00016438,2]
[350649547,1738025432485,-304.34144453,0.00016438,2]
[350649549,1738025432494,-556.46,0.00016438,2]
[350649551,1738025432503,-512.70603958,0.00016438,2]
[350649553,1738025432512,-507.26043965,0.00016438,2]
[350649555,1738025432521,-514.66534125,0.00016438,2]
[350649557,1738025432530,-515.7137288,0.00016438,2]
[350649559,1738025432540,-505.34320757,0.00016438,2]
[350649561,1738025432549,-292.9215997,0.00016438,2]
[350650092,1738025438156,-216.10706452,0.00016438,2]
[350650093,1738025438165,-636.74499839,0.00016438,2]
[350650095,1738025438175,-507.39078344,0.00016438,2]
[350650097,1738025438184,-504.56435226,0.00016438,2]
[350650099,1738025438194,-506.87369442,0.00016438,2]
[350650101,1738025438207,-510.22296656,0.00016438,2]
[350650103,1738025438216,-507.56977188,0.00016438,2]
[350650105,1738025438225,-511.33635374,0.00016438,2]
[350650107,1738025438235,-151.07,0.00016438,2]
[350650109,1738025438244,-504.33467191,0.00016438,2]
[350650111,1738025438254,-508.40257198,0.00016438,2]
[350650113,1738025438263,-381.65166189,0.00016438,2]
[350650115,1738025438272,-500.0,0.00016438,2]
[350650117,1738025438282,-500.0,0.00016438,2]
[350650119,1738025438293,-500.0,0.00016438,2]
[350650122,1738025438302,-500.0,0.00016438,2]
[350650125,1738025438312,-500.9027951,0.00016438,2]
[350650128,1738025438321,-500.0,0.00016438,2]
[350650131,1738025438331,-500.0,0.00016438,2]
[350650134,1738025438341,-500.0,0.00016438,2]
[350650136,1738025438350,-500.0,0.00016438,2]
[350650138,1738025438359,-500.0,0.00016438,2]
[350650140,1738025438368,-254.61073593,0.00016438,2]
[350650142,1738025438378,-636.67356742,0.00016438,2]
[350650144,1738025438387,-500.0,0.00016438,2]
[350650146,1738025438397,-504.72911011,0.00016438,2]
[350650148,1738025438406,-393.3,0.00016438,2]
[350650150,1738025438415,-500.0,0.00016438,2]
[350650152,1738025438424,-500.0,0.00016438,2]
[350650154,1738025438435,-500.0,0.00016438,2]
[350650156,1738025438444,-500.0,0.00016438,2]
[350650158,1738025438453,-243.12,0.00016438,2]
[350650160,1738025438463,-517.20299072,0.00016438,2]
[350650162,1738025438472,-500.0,0.00016438,2]
[350650164,1738025438481,-380.84,0.00016438,2]
[350650166,1738025438490,-427.9,0.00016438,2]
[350650168,1738025438500,-508.69679925,0.00016438,2]
[350650170,1738025438509,-490.2,0.00016438,2]
[350650172,1738025438519,-268.72,0.00016438,2]
[350650174,1738025438529,-242.86977413,0.00016438,2]
[350650176,1738025438540,-500.0,0.00016438,2]
[350650178,1738025438550,-500.0,0.00016438,2]
[350650180,1738025438560,-500.0,0.00016438,2]
[350650182,1738025438569,-500.0,0.00016438,2]
[350650184,1738025438578,-500.0,0.00016438,2]
[350650186,1738025438587,-500.0,0.00016438,2]
[350650188,1738025438597,-500.0,0.00016438,2]
[350650190,1738025438606,-500.0,0.00016438,2]
[350650192,1738025438615,-504.29222781,0.00016438,2]
[350650194,1738025438624,-500.0,0.00016438,2]
[350650196,1738025438633,-500.0,0.00016438,2]
[350650198,1738025438642,-500.0,0.00016438,2]
[350650200,1738025438651,-500.0,0.00016438,2]
[350650202,1738025438660,-500.0,0.00016438,2]
[350650204,1738025438670,-500.0,0.00016438,2]
[350650206,1738025438679,-500.0,0.00016438,2]
[350650208,1738025438687,-500.0,0.00016438,2]
[350650210,1738025438697,-447.81985225,0.00016438,2]
[350650393,1738025440464,-52.18014775,0.00016438,2]
[350650394,1738025440474,-440.17700545,0.00016438,2]
[350650397,1738025440485,-69.45946957,0.00016438,2]
[350650399,1738025440495,-404.32053043,0.00016438,2]
[350650623,1738025443453,-95.67946957,0.00016438,2]
[350650624,1738025443463,-500.0,0.00016438,2]
[350650625,1738025443472,-500.0,0.00016438,2]
[350650626,1738025443482,-500.0,0.00016438,2]
[350650627,1738025443492,-500.0,0.00016438,2]
[350650628,1738025443501,-494.7571562,0.00016438,2]
[350650629,1738025443511,-500.0,0.00016438,2]
[350650630,1738025443520,-500.0,0.00016438,2]
[350650631,1738025443529,-500.0,0.00016438,2]
[350650632,1738025443540,-514.82600701,0.00016438,2]
[350650633,1738025443550,-500.0,0.00016438,2]
[350650634,1738025443559,-501.41327211,0.00016438,2]
[350650635,1738025443570,-511.06818807,0.00016438,2]
[350650636,1738025443579,-515.24161525,0.00016438,2]
[350650637,1738025443588,-500.0,0.00016438,2]
[350650638,1738025443597,-500.0,0.00016438,2]
[350650639,1738025443607,-500.0,0.00016438,2]
[350650640,1738025443616,-500.0,0.00016438,2]
[350650641,1738025443625,-500.0,0.00016438,2]
[350650642,1738025443634,-518.179845,0.00016438,2]
[350650643,1738025443643,-500.0,0.00016438,2]
[350650644,1738025443652,-220.45577197,0.00016438,2]
[350650645,1738025443669,-279.54422803,0.00016438,2]
[350650646,1738025443678,-508.89564007,0.00016438,2]
[350650647,1738025443688,-500.0,0.00016438,2]
[350650648,1738025443697,-500.0,0.00016438,2]
[350650649,1738025443706,-500.0,0.00016438,2]
[350650650,1738025443715,-200.0,0.00016438,2]
[350650651,1738025443724,-500.0,0.00016438,2]
[350650652,1738025443734,-500.0,0.00016438,2]
[350650653,1738025443743,-500.0,0.00016438,2]
[350650654,1738025443752,-501.18074855,0.00016438,2]
[350650655,1738025443762,-500.0,0.00016438,2]
[350650656,1738025443771,-500.0,0.00016438,2]
[350650657,1738025443780,-500.0,0.00016438,2]
[350650658,1738025443793,-500.0,0.00016438,2]
[350650659,1738025443807,-500.0,0.00016438,2]
[350650660,1738025443816,-500.0,0.00016438,2]
[350650661,1738025443826,-500.0,0.00016438,2]
[350650662,1738025443835,-500.0,0.00016438,2]
[350650663,1738025443845,-500.0,0.00016438,2]
[350650664,1738025443855,-500.0,0.00016438,2]
[350650665,1738025443864,-500.0,0.00016438,2]
[350650666,1738025443874,-513.82941174,0.00016438,2]
[350650667,1738025443883,-500.0,0.00016438,2]
[350650668,1738025443894,-500.0,0.00016438,2]
[350650669,1738025443903,-500.0,0.00016438,2]
[350650670,1738025443912,-500.0,0.00016438,2]
[350650671,1738025443922,-500.0,0.00016438,2]
[350650672,1738025443931,-500.0,0.00016438,2]
[350650673,1738025443940,-500.0,0.00016438,2]
[350650674,1738025443950,-500.0,0.00016438,2]
[350650675,1738025443959,-500.0,0.00016438,2]
[350650676,1738025443969,-500.0,0.00016438,2]
[350650677,1738025443978,-500.0,0.00016438,2]
[350650678,1738025443988,-500.0,0.00016438,2]
[350650679,1738025443998,-613.73743065,0.00016438,2]
[350650680,1738025444008,-500.0,0.00016438,2]
[350650681,1738025444018,-500.0,0.00016438,2]
[350650682,1738025444027,-500.0,0.00016438,2]
[350650683,1738025444036,-500.0,0.00016438,2]
[350650684,1738025444049,-500.0,0.00016438,2]
[350650685,1738025444058,-503.08907522,0.00016438,2]
[350650686,1738025444067,-500.0,0.00016438,2]
[350650687,1738025444077,-500.0,0.00016438,2]
[350650688,1738025444086,-500.0,0.00016438,2]
[350650689,1738025444095,-500.0,0.00016438,2]
[350650690,1738025444104,-500.0,0.00016438,2]